[Event "*** Qualifier 1: Titled Tuesday 3|2 Blitz"]
[Site "Chess.com"]
[Date "2017.04.04"]
[Round "1"]
[White "MorpheusPro"]
[Black "fastestmindalive"]
[Result "0-1"]
[WhiteElo "2083"]
[BlackElo "2420"]
[TimeControl "180+2"]
[EndTime "13:08:37 PDT"]
[Termination "fastestmindalive won by resignation"]

1. d4 {[%clk 0:03:00]} 1... Nf6 {[%clk 0:02:59.1]} 2. c4 {[%clk 0:03:00.2]} 2...
e5 {[%clk 0:02:30]} 3. dxe5 {[%clk 0:02:56]} 3... Ng4 {[%clk 0:02:30.1]} 4. Bf4
{[%clk 0:02:55]} 4... Nc6 {[%clk 0:02:27.6]} 5. Nf3 {[%clk 0:02:51.2]} 5... Bb4+
{[%clk 0:02:28]} 6. Nc3 {[%clk 0:02:50.3]} 6... Qe7 {[%clk 0:02:29.1]} 7. Qd5
{[%clk 0:02:47.9]} 7... f6 {[%clk 0:02:20]} 8. exf6 {[%clk 0:02:45.5]} 8... Nxf6
{[%clk 0:02:20.9]} 9. Qd3 {[%clk 0:02:40.5]} 9... O-O {[%clk 0:02:19.7]} 10. e3
{[%clk 0:02:40.5]} 10... Ne4 {[%clk 0:02:17.5]} 11. Be2 {[%clk 0:02:29.6]} 11...
d6 {[%clk 0:02:10.3]} 12. O-O {[%clk 0:02:23.9]} 12... Bxc3 {[%clk 0:02:09.9]}
13. bxc3 {[%clk 0:02:23.5]} 13... Bf5 {[%clk 0:02:10.6]} 14. Qd5+ {[%clk
0:02:06.7]} 14... Kh8 {[%clk 0:02:11.5]} 15. Rac1 {[%clk 0:01:37.2]} 15... Bg6
{[%clk 0:02:11.2]} 16. Bg5 {[%clk 0:01:07.3]} 16... Qe8 {[%clk 0:01:49.2]} 17.
Bh4 {[%clk 0:00:53]} 17... Nc5 {[%clk 0:01:28.1]} 18. Qd2 {[%clk 0:00:30.9]}
18... h6 {[%clk 0:01:25.6]} 19. Qd1 {[%clk 0:00:29.3]} 19... Qe4 {[%clk
0:01:26.1]} 20. Bg3 {[%clk 0:00:26.9]} 20... Nd3 {[%clk 0:01:12.3]} 21. Bxd3
{[%clk 0:00:14.5]} 21... Qxd3 {[%clk 0:01:13.2]} 22. Nd2 {[%clk 0:00:13.9]}
22... Ne5 {[%clk 0:01:11.7]} 23. Bxe5 {[%clk 0:00:13.5]} 23... dxe5 {[%clk
0:01:13.6]} 24. Nf3 {[%clk 0:00:12.7]} 24... Rfe8 {[%clk 0:01:03.6]} 25. Qxd3
{[%clk 0:00:12.7]} 25... Bxd3 {[%clk 0:01:04.1]} 26. Rfd1 {[%clk 0:00:14.1]}
26... Bxc4 {[%clk 0:01:03.3]} 27. Rd7 {[%clk 0:00:15.3]} 27... Rac8 {[%clk
0:01:04.5]} 28. Rcd1 {[%clk 0:00:15.7]} 28... Bxa2 {[%clk 0:01:05.1]} 29. R1d2
{[%clk 0:00:15]} 29... Bc4 {[%clk 0:01:05.7]} 30. h3 {[%clk 0:00:15.4]} 30... a5
{[%clk 0:01:06.8]} 31. Nh4 {[%clk 0:00:16.5]} 31... Kh7 {[%clk 0:00:55]} 32. Nf5
{[%clk 0:00:16.7]} 32... Be6 {[%clk 0:00:56.3]} 33. Rxg7+ {[%clk 0:00:13.7]}
33... Kh8 {[%clk 0:00:57.6]} 34. Re7 {[%clk 0:00:08.4]} 34... Bxf5 {[%clk
0:00:57.9]} 35. Rxe8+ {[%clk 0:00:09.6]} 35... Rxe8 {[%clk 0:00:58.9]} 36. Ra2
{[%clk 0:00:11]} 36... Ra8 {[%clk 0:00:59.7]} 37. f3 {[%clk 0:00:11.2]} 37... a4
{[%clk 0:01:00.2]} 38. Ra3 {[%clk 0:00:12.4]} 38... c5 {[%clk 0:00:58]} 39. e4
{[%clk 0:00:13.4]} 39... Be6 {[%clk 0:00:59.1]} 40. Kf2 {[%clk 0:00:14.4]} 40...
b5 {[%clk 0:00:59.9]} 0-1

[Event "*** Qualifier 1: Titled Tuesday 3|2 Blitz"]
[Site "Chess.com"]
[Date "2017.04.04"]
[Round "1"]
[White "pedroholly22"]
[Black "Tesla37"]
[Result "1-0"]
[WhiteElo "2288"]
[BlackElo "2565"]
[TimeControl "180+2"]
[EndTime "13:08:51 PDT"]
[Termination "pedroholly22 won by resignation"]

1. d4 {[%clk 0:03:02]} 1... Nf6 {[%clk 0:03:00.1]} 2. c4 {[%clk 0:03:02]} 2...
d6 {[%clk 0:03:01.1]} 3. Nf3 {[%clk 0:03:00.2]} 3... Nbd7 {[%clk 0:03:01.7]} 4.
Nc3 {[%clk 0:02:57.3]} 4... e5 {[%clk 0:03:01.9]} 5. g3 {[%clk 0:02:56.2]} 5...
c6 {[%clk 0:02:57.2]} 6. Bg2 {[%clk 0:02:53.9]} 6... Be7 {[%clk 0:02:58.2]} 7.
O-O {[%clk 0:02:53.9]} 7... O-O {[%clk 0:02:58.6]} 8. e4 {[%clk 0:02:54.7]} 8...
a6 {[%clk 0:02:59.2]} 9. Re1 {[%clk 0:02:54.8]} 9... Qc7 {[%clk 0:02:58.6]} 10.
h3 {[%clk 0:02:53.2]} 10... b5 {[%clk 0:02:57.7]} 11. b3 {[%clk 0:02:47.9]}
11... Bb7 {[%clk 0:02:54.9]} 12. Be3 {[%clk 0:02:46.4]} 12... b4 {[%clk
0:02:51.1]} 13. Na4 {[%clk 0:02:43.4]} 13... Nxe4 {[%clk 0:02:48]} 14. dxe5
{[%clk 0:02:43.9]} 14... dxe5 {[%clk 0:02:44.7]} 15. Nxe5 {[%clk 0:02:44.5]}
15... Nxe5 {[%clk 0:02:41]} 16. Bxe4 {[%clk 0:02:30.4]} 16... Rad8 {[%clk
0:02:10.3]} 17. Qe2 {[%clk 0:02:29.1]} 17... Nd7 {[%clk 0:01:46.9]} 18. Rad1
{[%clk 0:02:17.1]} 18... Rfe8 {[%clk 0:01:43.4]} 19. Bf4 {[%clk 0:02:14.2]}
19... Qa5 {[%clk 0:01:42.3]} 20. Qf3 {[%clk 0:01:57.9]} 20... Bf6 {[%clk
0:00:43.1]} 21. Bxc6 {[%clk 0:01:52.2]} 21... Rxe1+ {[%clk 0:00:42.3]} 22. Rxe1
{[%clk 0:01:52]} 22... Bxc6 {[%clk 0:00:43.3]} 23. Qxc6 {[%clk 0:01:51.4]} 23...
Qf5 {[%clk 0:00:44.6]} 24. Kg2 {[%clk 0:01:42.3]} 24... g5 {[%clk 0:00:43.6]}
25. Be3 {[%clk 0:01:36.8]} 25... Ne5 {[%clk 0:00:41.8]} 26. Qb7 {[%clk
0:01:35.3]} 26... Rd7 {[%clk 0:00:40.2]} 27. Qa8+ {[%clk 0:01:35.7]} 27... Kg7
{[%clk 0:00:34.6]} 28. Nc5 {[%clk 0:01:33.8]} 28... Rd8 {[%clk 0:00:34.4]} 29.
Qe4 {[%clk 0:01:31.9]} 29... Kg6 {[%clk 0:00:28.6]} 30. g4 {[%clk 0:01:27.7]}
30... Qxe4+ {[%clk 0:00:29]} 31. Nxe4 {[%clk 0:01:28.1]} 31... h6 {[%clk
0:00:26.6]} 32. Nxf6 {[%clk 0:01:19.3]} 32... Kxf6 {[%clk 0:00:27.1]} 33. c5
{[%clk 0:01:20.3]} 33... Nd3 {[%clk 0:00:27.7]} 34. Re2 {[%clk 0:01:13.6]} 34...
Ne5 {[%clk 0:00:24.9]} 35. Rc2 {[%clk 0:01:12.1]} 35... Ke6 {[%clk 0:00:25.4]}
36. c6 {[%clk 0:01:11.8]} 36... Rc8 {[%clk 0:00:26.3]} 37. c7 {[%clk 0:01:09.7]}
37... Kd7 {[%clk 0:00:25.1]} 38. f4 {[%clk 0:01:09.7]} 38... gxf4 {[%clk
0:00:19.2]} 39. Bxf4 {[%clk 0:01:09.4]} 39... f6 {[%clk 0:00:20.8]} 40. Bxh6
{[%clk 0:01:07.9]} 40... Rxc7 {[%clk 0:00:21.3]} 41. Rxc7+ {[%clk 0:01:08.1]}
41... Kxc7 {[%clk 0:00:22.5]} 42. Bf4 {[%clk 0:01:09.2]} 42... Kd6 {[%clk
0:00:21.7]} 43. Kf2 {[%clk 0:01:07.4]} 43... Kd5 {[%clk 0:00:22.6]} 44. Bxe5
{[%clk 0:01:07.9]} 44... Kxe5 {[%clk 0:00:23.7]} 45. Ke3 {[%clk 0:01:09]} 45...
a5 {[%clk 0:00:25]} 46. h4 {[%clk 0:01:09.3]} 46... Kd5 {[%clk 0:00:24.9]} 47.
Kd3 {[%clk 0:01:08.3]} 47... Ke5 {[%clk 0:00:25.8]} 48. g5 {[%clk 0:01:07.3]}
48... fxg5 {[%clk 0:00:19.6]} 49. hxg5 {[%clk 0:01:07.8]} 1-0

[Event "*** Qualifier 1: Titled Tuesday 3|2 Blitz"]
[Site "Chess.com"]
[Date "2017.04.04"]
[Round "1"]
[White "jeaston1"]
[Black "NTBT_DHS"]
[Result "0-1"]
[WhiteElo "2152"]
[BlackElo "2460"]
[TimeControl "180+2"]
[EndTime "13:08:57 PDT"]
[Termination "NTBT_DHS won by resignation"]

1. d4 {[%clk 0:03:02]} 1... Nf6 {[%clk 0:03:01]} 2. c4 {[%clk 0:03:02.9]} 2...
g6 {[%clk 0:03:01.7]} 3. Nc3 {[%clk 0:03:03.8]} 3... Bg7 {[%clk 0:03:03]} 4. e4
{[%clk 0:03:05]} 4... d6 {[%clk 0:03:04.3]} 5. f3 {[%clk 0:03:06.3]} 5... O-O
{[%clk 0:03:05.8]} 6. Be3 {[%clk 0:03:07.1]} 6... c5 {[%clk 0:03:07.4]} 7. dxc5
{[%clk 0:03:07.9]} 7... dxc5 {[%clk 0:03:08.5]} 8. Qxd8 {[%clk 0:03:09.8]} 8...
Rxd8 {[%clk 0:03:09.7]} 9. Bxc5 {[%clk 0:03:11.4]} 9... Nc6 {[%clk 0:03:11.4]}
10. Nge2 {[%clk 0:03:11.2]} 10... b6 {[%clk 0:03:12.1]} 11. Ba3 {[%clk
0:03:12.7]} 11... e6 {[%clk 0:02:59.4]} 12. Nb5 {[%clk 0:02:34.8]} 12... a6
{[%clk 0:01:47.6]} 13. Nd6 {[%clk 0:02:33.2]} 13... Bf8 {[%clk 0:01:45.3]} 14.
Nxc8 {[%clk 0:02:33.8]} 14... Bxa3 {[%clk 0:01:45.7]} 15. bxa3 {[%clk
0:02:24.2]} 15... Raxc8 {[%clk 0:01:46.1]} 16. Rc1 {[%clk 0:01:53.6]} 16... Nd7
{[%clk 0:01:41.8]} 17. Ng3 {[%clk 0:01:13.7]} 17... h5 {[%clk 0:01:21.7]} 18. h4
{[%clk 0:01:11.1]} 18... Nde5 {[%clk 0:01:21.8]} 19. Kf2 {[%clk 0:01:07.7]}
19... Rd2+ {[%clk 0:01:21.5]} 20. Ke3 {[%clk 0:01:02.1]} 20... Rxa2 {[%clk
0:01:18.9]} 21. Rc3 {[%clk 0:01:03.2]} 21... Rd8 {[%clk 0:01:18.5]} 22. Be2
{[%clk 0:01:01.9]} 22... Rdd2 {[%clk 0:01:02.8]} 23. Re1 {[%clk 0:01:00.4]}
23... Nd4 {[%clk 0:00:54.5]} 24. f4 {[%clk 0:00:47.7]} 24... Ng4+ {[%clk
0:00:34.1]} 25. Bxg4 {[%clk 0:00:48.6]} 25... hxg4 {[%clk 0:00:35.2]} 26. Nf1
{[%clk 0:00:43.6]} 26... Re2+ {[%clk 0:00:27.7]} 27. Rxe2 {[%clk 0:00:42.3]}
27... Nxe2 {[%clk 0:00:29.3]} 28. Rd3 {[%clk 0:00:40.3]} 28... Nc1 {[%clk
0:00:30.1]} 29. Rd8+ {[%clk 0:00:41.2]} 29... Kg7 {[%clk 0:00:31.1]} 30. g3
{[%clk 0:00:37.3]} 30... Re2+ {[%clk 0:00:29.8]} 31. Kd4 {[%clk 0:00:21.3]}
31... Rf2 {[%clk 0:00:30.9]} 32. Ke5 {[%clk 0:00:15.9]} 32... Rxf1 {[%clk
0:00:29.9]} 33. Rd6 {[%clk 0:00:16.7]} 33... Rf3 {[%clk 0:00:26.5]} 34. Rxb6
{[%clk 0:00:18]} 34... Rxa3 {[%clk 0:00:24]} 35. c5 {[%clk 0:00:19.2]} 35...
Nd3+ {[%clk 0:00:21.9]} 36. Kd4 {[%clk 0:00:20.3]} 36... Nxc5 {[%clk 0:00:21.2]}
37. Kxc5 {[%clk 0:00:21.2]} 37... Rxg3 {[%clk 0:00:22.5]} 38. Rxa6 {[%clk
0:00:22.5]} 38... Rh3 {[%clk 0:00:23.2]} 39. Kd4 {[%clk 0:00:23.4]} 39... Rxh4
{[%clk 0:00:24.6]} 40. Ke5 {[%clk 0:00:23.1]} 40... Rh5+ {[%clk 0:00:25.1]} 41.
Kd4 {[%clk 0:00:23.2]} 41... g3 {[%clk 0:00:24.7]} 42. Ra3 {[%clk 0:00:23]}
42... Rh3 {[%clk 0:00:22.1]} 43. Rf3 {[%clk 0:00:24.3]} 43... g2 {[%clk
0:00:22.7]} 0-1

[Event "*** Qualifier 1: Titled Tuesday 3|2 Blitz"]
[Site "Chess.com"]
[Date "2017.04.04"]
[Round "1"]
[White "tigra"]
[Black "WanderingPuppet"]
[Result "1-0"]
[WhiteElo "2613"]
[BlackElo "2300"]
[TimeControl "180+2"]
[EndTime "13:09:00 PDT"]
[Termination "tigra won on time"]

1. e4 {[%clk 0:03:02]} 1... c5 {[%clk 0:03:00.4]} 2. Nf3 {[%clk 0:03:01.6]} 2...
d6 {[%clk 0:03:01]} 3. d4 {[%clk 0:03:02]} 3... cxd4 {[%clk 0:03:02.9]} 4. Nxd4
{[%clk 0:03:03.2]} 4... Nf6 {[%clk 0:03:02.7]} 5. Nc3 {[%clk 0:03:04.3]} 5... e6
{[%clk 0:03:00.8]} 6. g4 {[%clk 0:03:04.2]} 6... h6 {[%clk 0:03:01.7]} 7. Rg1
{[%clk 0:03:04.5]} 7... Nc6 {[%clk 0:03:00.1]} 8. Be3 {[%clk 0:03:05.1]} 8... a6
{[%clk 0:02:55.7]} 9. h4 {[%clk 0:03:05.5]} 9... e5 {[%clk 0:02:55.9]} 10. Nxc6
{[%clk 0:03:02.8]} 10... bxc6 {[%clk 0:02:57.8]} 11. g5 {[%clk 0:03:03.9]} 11...
Nd7 {[%clk 0:02:55.3]} 12. g6 {[%clk 0:03:03.5]} 12... f6 {[%clk 0:02:50.7]} 13.
Qd3 {[%clk 0:03:01]} 13... Nc5 {[%clk 0:02:50.4]} 14. Bxc5 {[%clk 0:02:59.4]}
14... dxc5 {[%clk 0:02:51.3]} 15. Qc4 {[%clk 0:02:57.2]} 15... Qe7 {[%clk
0:02:51]} 16. Bh3 {[%clk 0:02:55.1]} 16... Bxh3 {[%clk 0:02:48.5]} 17. O-O-O
{[%clk 0:02:55.2]} 17... Be6 {[%clk 0:02:38.7]} 18. Qa4 {[%clk 0:02:55.3]} 18...
Qb7 {[%clk 0:02:30.9]} 19. f4 {[%clk 0:02:49.1]} 19... Be7 {[%clk 0:02:26.2]}
20. f5 {[%clk 0:02:48.5]} 20... Bd7 {[%clk 0:02:23.8]} 21. Qc4 {[%clk
0:02:46.1]} 21... Rf8 {[%clk 0:02:22.8]} 22. Rg3 {[%clk 0:02:42.3]} 22... O-O-O
{[%clk 0:02:13]} 23. Rgd3 {[%clk 0:02:39.7]} 23... Kc7 {[%clk 0:02:03.2]} 24. a3
{[%clk 0:02:15.7]} 24... Qb6 {[%clk 0:01:31.5]} 25. R1d2 {[%clk 0:02:12.8]}
25... a5 {[%clk 0:01:09.5]} 26. Kb1 {[%clk 0:02:10.5]} 26... Bc8 {[%clk
0:01:01.7]} 27. Rxd8 {[%clk 0:02:09.9]} 27... Bxd8 {[%clk 0:00:44.8]} 28. b3
{[%clk 0:02:00.1]} 28... Be7 {[%clk 0:00:40.6]} 29. Na4 {[%clk 0:01:47.6]} 29...
Qb5 {[%clk 0:00:34]} 30. Qc3 {[%clk 0:01:48]} 30... c4 {[%clk 0:00:29.9]} 31.
Ka2 {[%clk 0:01:47.8]} 31... cxb3+ {[%clk 0:00:28.6]} 32. cxb3 {[%clk
0:01:49.7]} 32... Rd8 {[%clk 0:00:24.6]} 33. Rc2 {[%clk 0:01:44.3]} 33... Rd3
{[%clk 0:00:22.6]} 34. Qb2 {[%clk 0:01:44.1]} 34... Ba6 {[%clk 0:00:20.2]} 35.
Nc3 {[%clk 0:01:44]} 35... Qb6 {[%clk 0:00:18.1]} 36. Nd5+ {[%clk 0:01:44.1]}
36... Rxd5 {[%clk 0:00:18.8]} 37. exd5 {[%clk 0:01:45.4]} 37... Bc5 {[%clk
0:00:16.1]} 38. Qc3 {[%clk 0:01:43.7]} 38... Kd6 {[%clk 0:00:16.3]} 39. dxc6
{[%clk 0:01:42.3]} 39... Bd4 {[%clk 0:00:16]} 40. Qf3 {[%clk 0:01:38.7]} 40...
a4 {[%clk 0:00:13.6]} 41. b4 {[%clk 0:01:36.5]} 41... Bb5 {[%clk 0:00:14]} 42.
c7 {[%clk 0:01:36.1]} 42... Bd7 {[%clk 0:00:15.3]} 43. c8=N+ {[%clk 0:01:32.9]}
43... Bxc8 {[%clk 0:00:15.5]} 44. Rxc8 {[%clk 0:01:34.5]} 44... Kd7 {[%clk
0:00:12.6]} 45. Rc4 {[%clk 0:01:32.7]} 45... Qb5 {[%clk 0:00:12]} 46. Rc2 {[%clk
0:01:29.3]} 46... Kd6 {[%clk 0:00:09.1]} 47. Qe4 {[%clk 0:01:25.7]} 47... Qd5+
{[%clk 0:00:09.7]} 48. Qxd5+ {[%clk 0:01:25.2]} 48... Kxd5 {[%clk 0:00:11.6]}
49. Rc7 {[%clk 0:01:25]} 49... e4 {[%clk 0:00:12.1]} 50. Rxg7 {[%clk 0:01:24.3]}
50... e3 {[%clk 0:00:13.1]} 51. Rd7+ {[%clk 0:01:24.3]} 51... Ke4 {[%clk
0:00:13.9]} 52. g7 {[%clk 0:01:23.6]} 52... e2 {[%clk 0:00:15.1]} 53. g8=Q
{[%clk 0:01:22.8]} 53... e1=Q {[%clk 0:00:14.1]} 54. Qd5+ {[%clk 0:01:22.5]} 1-0

[Event "*** Qualifier 1: Titled Tuesday 3|2 Blitz"]
[Site "Chess.com"]
[Date "2017.04.04"]
[Round "1"]
[White "Vamostodorecto"]
[Black "Noukii"]
[Result "0-1"]
[WhiteElo "2344"]
[BlackElo "2683"]
[TimeControl "180+2"]
[EndTime "13:09:03 PDT"]
[Termination "Noukii won by resignation"]

1. d4 {[%clk 0:03:02]} 1... d5 {[%clk 0:03:00.6]} 2. c4 {[%clk 0:03:02.9]} 2...
c6 {[%clk 0:03:02.1]} 3. Nf3 {[%clk 0:03:02.7]} 3... Nf6 {[%clk 0:03:03.2]} 4.
Nc3 {[%clk 0:03:02.7]} 4... a6 {[%clk 0:03:00.8]} 5. e3 {[%clk 0:03:02.1]} 5...
Bf5 {[%clk 0:02:59.4]} 6. cxd5 {[%clk 0:02:51.9]} 6... cxd5 {[%clk 0:02:56.2]}
7. Bd3 {[%clk 0:02:52.9]} 7... Bxd3 {[%clk 0:02:56.9]} 8. Qxd3 {[%clk
0:02:54.8]} 8... Nc6 {[%clk 0:02:58.6]} 9. a3 {[%clk 0:02:53.3]} 9... e6 {[%clk
0:02:58.9]} 10. O-O {[%clk 0:02:52.5]} 10... Be7 {[%clk 0:02:58.2]} 11. Ne5
{[%clk 0:02:45.9]} 11... Nxe5 {[%clk 0:02:55.8]} 12. dxe5 {[%clk 0:02:47.8]}
12... Nd7 {[%clk 0:02:57.1]} 13. f4 {[%clk 0:02:47.7]} 13... Nc5 {[%clk
0:02:56.9]} 14. Qc2 {[%clk 0:02:46.6]} 14... Rc8 {[%clk 0:02:57.5]} 15. Kh1
{[%clk 0:02:35.1]} 15... O-O {[%clk 0:02:53.1]} 16. Qe2 {[%clk 0:02:23.9]} 16...
f5 {[%clk 0:02:40.2]} 17. Bd2 {[%clk 0:02:12]} 17... Nb3 {[%clk 0:02:34.9]} 18.
Rad1 {[%clk 0:02:09.4]} 18... Qb6 {[%clk 0:02:12.8]} 19. Be1 {[%clk 0:02:05.7]}
19... Rfd8 {[%clk 0:02:07.3]} 20. Bf2 {[%clk 0:02:05.1]} 20... Qc6 {[%clk
0:02:02.7]} 21. Qh5 {[%clk 0:01:29.8]} 21... Bxa3 {[%clk 0:01:51.4]} 22. Nxd5
{[%clk 0:01:24]} 22... Rxd5 {[%clk 0:01:52.4]} 23. bxa3 {[%clk 0:01:19.9]} 23...
Nd2 {[%clk 0:01:47.9]} 24. Rfe1 {[%clk 0:01:09.4]} 24... Ne4 {[%clk 0:01:48.2]}
25. Bg1 {[%clk 0:01:06]} 25... g6 {[%clk 0:01:39.9]} 26. Qh4 {[%clk 0:01:01.6]}
26... Rc7 {[%clk 0:01:17.5]} 27. h3 {[%clk 0:00:49.8]} 27... b5 {[%clk
0:01:17.4]} 28. Rc1 {[%clk 0:00:44.9]} 28... Qd7 {[%clk 0:01:18.4]} 29. Rxc7
{[%clk 0:00:33.1]} 29... Qxc7 {[%clk 0:01:18.5]} 30. Rf1 {[%clk 0:00:21.2]}
30... Kg7 {[%clk 0:01:10]} 31. Ra1 {[%clk 0:00:19.1]} 31... Qd8 {[%clk
0:01:05.1]} 32. Qe1 {[%clk 0:00:17.5]} 32... Rd2 {[%clk 0:01:02]} 33. a4 {[%clk
0:00:18.6]} 33... b4 {[%clk 0:01:02.8]} 34. Rb1 {[%clk 0:00:16.1]} 34... a5
{[%clk 0:01:03.5]} 35. Qc1 {[%clk 0:00:17.8]} 35... Qd7 {[%clk 0:00:59.7]} 36.
Kh2 {[%clk 0:00:17.5]} 36... Qb7 {[%clk 0:00:53.8]} 37. Qf1 {[%clk 0:00:10.2]}
37... b3 {[%clk 0:00:53.8]} 38. Qb5 {[%clk 0:00:06.2]} 38... Qxb5 {[%clk
0:00:52.4]} 39. axb5 {[%clk 0:00:08.1]} 39... a4 {[%clk 0:00:53.9]} 40. b6
{[%clk 0:00:09.3]} 40... Rd5 {[%clk 0:00:51.6]} 41. b7 {[%clk 0:00:07.3]} 41...
Rb5 {[%clk 0:00:52.2]} 42. Ra1 {[%clk 0:00:09.2]} 42... b2 {[%clk 0:00:51.8]}
0-1

[Event "*** Qualifier 1: Titled Tuesday 3|2 Blitz"]
[Site "Chess.com"]
[Date "2017.04.04"]
[Round "1"]
[White "politeplayer"]
[Black "biostatistician"]
[Result "0-1"]
[WhiteElo "2130"]
[BlackElo "2455"]
[TimeControl "180+2"]
[EndTime "13:09:08 PDT"]
[Termination "biostatistician won by resignation"]

1. e4 {[%clk 0:03:02]} 1... e6 {[%clk 0:02:59.9]} 2. d4 {[%clk 0:03:01.6]} 2...
d5 {[%clk 0:03:01.8]} 3. Bd3 {[%clk 0:03:02.3]} 3... dxe4 {[%clk 0:03:01.6]} 4.
Bxe4 {[%clk 0:03:02.3]} 4... Nf6 {[%clk 0:03:03.5]} 5. Bf3 {[%clk 0:03:01.7]}
5... Nbd7 {[%clk 0:03:03.1]} 6. Ne2 {[%clk 0:03:01.3]} 6... e5 {[%clk
0:03:03.9]} 7. dxe5 {[%clk 0:03:00.2]} 7... Nxe5 {[%clk 0:03:05.8]} 8. Qxd8+
{[%clk 0:02:57.5]} 8... Kxd8 {[%clk 0:03:07.7]} 9. Nd2 {[%clk 0:02:45.7]} 9...
Bd6 {[%clk 0:02:51.3]} 10. O-O {[%clk 0:02:39.2]} 10... Re8 {[%clk 0:02:51.7]}
11. Ng3 {[%clk 0:02:29.9]} 11... Nxf3+ {[%clk 0:02:50.7]} 12. Nxf3 {[%clk
0:02:29.7]} 12... Bg4 {[%clk 0:02:48.9]} 13. Bg5 {[%clk 0:02:00.7]} 13... Ke7
{[%clk 0:02:11.1]} 14. Nd4 {[%clk 0:01:40]} 14... Kf8 {[%clk 0:02:09.4]} 15.
Bxf6 {[%clk 0:01:19.3]} 15... gxf6 {[%clk 0:02:11.3]} 16. f3 {[%clk 0:01:12.1]}
16... Bd7 {[%clk 0:02:09.1]} 17. Rae1 {[%clk 0:01:05.1]} 17... Bc5 {[%clk
0:02:08.4]} 18. c3 {[%clk 0:01:05.3]} 18... f5 {[%clk 0:02:08]} 19. Kh1 {[%clk
0:00:47.8]} 19... Bxd4 {[%clk 0:02:04.2]} 20. cxd4 {[%clk 0:00:47.6]} 20... Kg7
{[%clk 0:02:05.5]} 21. Nh5+ {[%clk 0:00:39.1]} 21... Kg6 {[%clk 0:02:06.2]} 22.
Nf4+ {[%clk 0:00:39.3]} 22... Kg5 {[%clk 0:02:06.5]} 23. Nd5 {[%clk 0:00:34.8]}
23... c6 {[%clk 0:02:05.2]} 24. f4+ {[%clk 0:00:25.2]} 24... Kg6 {[%clk
0:02:02.8]} 25. Nc3 {[%clk 0:00:19.5]} 25... Re6 {[%clk 0:01:54.1]} 26. Kg1
{[%clk 0:00:19.2]} 26... Rae8 {[%clk 0:01:53.9]} 27. Rxe6+ {[%clk 0:00:19.7]}
27... fxe6 {[%clk 0:01:52.5]} 28. Kf2 {[%clk 0:00:20]} 28... Rd8 {[%clk
0:01:53.4]} 29. Rd1 {[%clk 0:00:19.6]} 29... Be8 {[%clk 0:01:53.2]} 30. Ke3
{[%clk 0:00:20.1]} 30... Kf6 {[%clk 0:01:54.4]} 31. Rd2 {[%clk 0:00:20.6]} 31...
Bh5 {[%clk 0:01:55.2]} 32. Na4 {[%clk 0:00:20.9]} 32... b6 {[%clk 0:01:55.1]}
33. Rc2 {[%clk 0:00:21.9]} 33... Rc8 {[%clk 0:01:55.7]} 34. b4 {[%clk
0:00:22.7]} 34... Ke7 {[%clk 0:01:52.1]} 35. b5 {[%clk 0:00:23]} 35... Kd6
{[%clk 0:01:53]} 36. bxc6 {[%clk 0:00:22]} 36... Rxc6 {[%clk 0:01:54.9]} 37.
Rxc6+ {[%clk 0:00:22.7]} 37... Kxc6 {[%clk 0:01:56.8]} 38. Nc3 {[%clk
0:00:23.8]} 38... b5 {[%clk 0:01:56.2]} 39. a3 {[%clk 0:00:24.1]} 39... a5
{[%clk 0:01:55.4]} 40. h3 {[%clk 0:00:24.8]} 40... b4 {[%clk 0:01:55.2]} 41.
axb4 {[%clk 0:00:25.7]} 41... axb4 {[%clk 0:01:57.1]} 42. Nb1 {[%clk 0:00:26.4]}
42... Kb5 {[%clk 0:01:55.9]} 43. Nd2 {[%clk 0:00:27]} 43... Ka4 {[%clk
0:01:53.8]} 44. Kd3 {[%clk 0:00:28.1]} 44... Ka3 {[%clk 0:01:51.3]} 45. Nc4+
{[%clk 0:00:27.7]} 45... Kb3 {[%clk 0:01:51.6]} 46. Na5+ {[%clk 0:00:27.5]}
46... Kb2 {[%clk 0:01:52.2]} 47. Kc4 {[%clk 0:00:27.6]} 47... Ka3 {[%clk
0:01:41.5]} 48. d5 {[%clk 0:00:22.2]} 48... Be2+ {[%clk 0:01:40]} 49. Kd4 {[%clk
0:00:22.8]} 49... exd5 {[%clk 0:01:40.5]} 50. Kxd5 {[%clk 0:00:22.5]} 50... Bf1
{[%clk 0:01:40.6]} 51. g4 {[%clk 0:00:21.8]} 51... Bxh3 {[%clk 0:01:40.8]} 52.
g5 {[%clk 0:00:20.7]} 52... b3 {[%clk 0:01:19.7]} 53. Nxb3 {[%clk 0:00:19.1]}
53... Kxb3 {[%clk 0:01:21.6]} 54. Ke5 {[%clk 0:00:20.1]} 54... Kc4 {[%clk
0:01:22.4]} 55. Kf6 {[%clk 0:00:20.9]} 55... Kd5 {[%clk 0:01:23.5]} 56. Kg7
{[%clk 0:00:20.7]} 56... Ke4 {[%clk 0:01:23.9]} 57. Kxh7 {[%clk 0:00:21.7]}
57... Kxf4 {[%clk 0:01:22.3]} 58. g6 {[%clk 0:00:22.8]} 58... Bf1 {[%clk
0:01:23.4]} 59. g7 {[%clk 0:00:21.4]} 59... Bc4 {[%clk 0:01:24.1]} 60. g8=Q
{[%clk 0:00:19.8]} 60... Bxg8+ {[%clk 0:01:24.3]} 61. Kxg8 {[%clk 0:00:21.1]}
61... Kg4 {[%clk 0:01:25.6]} 0-1